[Event "Titled Tuesday Blitz April 25 Late 2023"]
[White "Petrovic, Aleksa"]
[Black "Degtiarev, Evgeny"]
[WhiteFideId "967629"]
[BlackFideId "4149610"]
[WhiteElo "2309"]
[BlackElo "2284"]
[Result "0-1"]
[Round "09"]
[TimeControl "180+2"]
[Date "2023.04.25"]
[WhiteClock "0:00:04"]
[BlackClock "0:00:04"]

1. d4 {[%clk 0:03:00]}  d5 {[%clk 0:02:58]} 2. c4 {[%clk 0:03:00]}  c6 {[%clk 0:02:59]} 3. Nf3 {[%clk 0:02:59]}  Nf6 {[%clk 0:02:59]} 4. Nc3 {[%clk 0:02:59]}  a6 {[%clk 0:02:59]} 5. c5 {[%clk 0:02:56]}  Bg4 {[%clk 0:02:58]} 6. Ne5 {[%clk 0:02:54]}  Be6 {[%clk 0:02:58]} 7. Nd3 {[%clk 0:02:43]}  g6 {[%clk 0:02:56]} 8. Nf4 {[%clk 0:02:38]}  Bf5 {[%clk 0:02:56]} 9. Qb3 {[%clk 0:02:36]}  Ra7 {[%clk 0:02:56]} 10. Na4 {[%clk 0:02:28]}  Nbd7 {[%clk 0:02:54]} 11. Nd3 {[%clk 0:02:23]}  Bg7 {[%clk 0:02:51]} 12. e3 {[%clk 0:02:07]}  O-O {[%clk 0:02:51]} 13. Be2 {[%clk 0:02:08]}  Re8 {[%clk 0:02:48]} 14. O-O {[%clk 0:02:05]}  e5 {[%clk 0:02:47]} 15. Nxe5 {[%clk 0:02:04]}  Nxe5 {[%clk 0:02:46]} 16. dxe5 {[%clk 0:02:05]}  Rxe5 {[%clk 0:02:44]} 17. Bd2 {[%clk 0:02:03]}  Ne4 {[%clk 0:02:37]} 18. Be1 {[%clk 0:01:56]}  Re7 {[%clk 0:02:08]} 19. f3 {[%clk 0:01:49]}  Nf6 {[%clk 0:02:05]} 20. Bf2 {[%clk 0:01:41]}  Nd7 {[%clk 0:01:46]} 21. g4 {[%clk 0:01:30]}  Be6 {[%clk 0:01:46]} 22. Qb4 {[%clk 0:01:18]}  a5 {[%clk 0:01:41]} 23. Qd2 {[%clk 0:01:16]}  Ra8 {[%clk 0:01:29]} 24. Bh4 {[%clk 0:01:11]}  f6 {[%clk 0:01:23]} 25. Bg3 {[%clk 0:01:10]}  Bf7 {[%clk 0:01:20]} 26. Rfe1 {[%clk 0:01:03]}  Re8 {[%clk 0:01:17]} 27. Rad1 {[%clk 0:01:02]}  Bf8 {[%clk 0:01:08]} 28. Qc1 {[%clk 0:00:54]}  Qe7 {[%clk 0:01:05]} 29. Bf1 {[%clk 0:00:37]}  Nxc5 {[%clk 0:01:00]} 30. Nc3 {[%clk 0:00:38]}  b5 {[%clk 0:00:44]} 31. b3 {[%clk 0:00:28]}  b4 {[%clk 0:00:40]} 32. Nb1 {[%clk 0:00:15]}  a4 {[%clk 0:00:38]} 33. Nd2 {[%clk 0:00:15]}  axb3 {[%clk 0:00:37]} 34. axb3 {[%clk 0:00:16]}  Ra2 {[%clk 0:00:34]} 35. e4 {[%clk 0:00:14]}  dxe4 {[%clk 0:00:32]} 36. Nxe4 {[%clk 0:00:14]}  Nxe4 {[%clk 0:00:30]} 37. Rxe4 {[%clk 0:00:15]}  Qa7+ {[%clk 0:00:29]} 38. Kh1 {[%clk 0:00:13]}  Rxe4 {[%clk 0:00:27]} 39. fxe4 {[%clk 0:00:13]}  Qe7 {[%clk 0:00:15]} 40. Bd3 {[%clk 0:00:11]}  c5 {[%clk 0:00:13]} 41. Qf4 {[%clk 0:00:07]}  Rb2 {[%clk 0:00:10]} 42. Rf1 {[%clk 0:00:06]}  Rxb3 {[%clk 0:00:10]} 43. Bc2 {[%clk 0:00:05]}  Rb2 {[%clk 0:00:09]} 44. Ba4 {[%clk 0:00:03]}  b3 {[%clk 0:00:07]} 45. Bc6 {[%clk 0:00:03]}  Rc2 {[%clk 0:00:05]} 46. Bd5 {[%clk 0:00:03]}  b2 {[%clk 0:00:05]} 47. Bxf7+ {[%clk 0:00:03]}  Qxf7 {[%clk 0:00:06]} 48. Qb8 {[%clk 0:00:02]}  c4 {[%clk 0:00:05]} 49. Qb5 {[%clk 0:00:01]}  c3 {[%clk 0:00:05]} 50. e5 {[%clk 0:00:02]}  Rc1 {[%clk 0:00:04]} 51. exf6 {[%clk 0:00:02]}  Qxf6 {[%clk 0:00:03]} 52. Qd5+ {[%clk 0:00:01]}  Kg7 {[%clk 0:00:02]} 53. Be5 {[%clk 0:00:01]}  Rxf1+ {[%clk 0:00:01]} 54. Kg2 {[%clk 0:00:02]}  b1=Q {[%clk 0:00:01]} 55. Bxf6+ {[%clk 0:00:02]}  Rxf6 {[%clk 0:00:02]} 56. Qd7+ {[%clk 0:00:02]}  Rf7 {[%clk 0:00:03]} 57. Qd4+ {[%clk 0:00:03]}  Kg8 {[%clk 0:00:03]} 58. Qd5 {[%clk 0:00:04]}  Qc2+ {[%clk 0:00:04]} 0-1


[Site "https://www.chess.com"]

[Event "Titled Tuesday Blitz April 25 Late 2023"]
[White "Delorme, Alban"]
[Black "Meunier-Pion, Jean"]
[WhiteFideId "623636"]
[BlackFideId "20685327"]
[WhiteElo "2196"]
[BlackElo "2124"]
[Result "0-1"]
[Round "09"]
[TimeControl "180+2"]
[Date "2023.04.25"]
[WhiteClock "0:00:01"]
[BlackClock "0:00:08"]

1. e4 {[%clk 0:03:00]}  c5 {[%clk 0:03:00]} 2. Nf3 {[%clk 0:02:59]}  d6 {[%clk 0:03:00]} 3. d4 {[%clk 0:02:59]}  cxd4 {[%clk 0:03:01]} 4. Nxd4 {[%clk 0:03:00]}  Nf6 {[%clk 0:03:01]} 5. Nc3 {[%clk 0:03:01]}  a6 {[%clk 0:03:02]} 6. Bg5 {[%clk 0:03:01]}  Nbd7 {[%clk 0:03:02]} 7. f4 {[%clk 0:03:01]}  Qc7 {[%clk 0:03:02]} 8. Qf3 {[%clk 0:02:59]}  h6 {[%clk 0:03:02]} 9. Bh4 {[%clk 0:02:58]}  g5 {[%clk 0:03:02]} 10. fxg5 {[%clk 0:02:57]}  hxg5 {[%clk 0:03:02]} 11. Bxg5 {[%clk 0:02:58]}  Qc5 {[%clk 0:03:02]} 12. Be3 {[%clk 0:02:57]}  Ne5 {[%clk 0:03:03]} 13. Qe2 {[%clk 0:02:58]}  Qb4 {[%clk 0:02:51]} 14. O-O-O {[%clk 0:02:44]}  Neg4 {[%clk 0:02:15]} 15. Bg1 {[%clk 0:02:38]}  Bh6+ {[%clk 0:01:55]} 16. Kb1 {[%clk 0:02:38]}  Be6 {[%clk 0:01:52]} 17. Nb3 {[%clk 0:02:03]}  Bxb3 {[%clk 0:01:32]} 18. axb3 {[%clk 0:02:03]}  Rc8 {[%clk 0:01:21]} 19. h3 {[%clk 0:01:46]}  Ne5 {[%clk 0:00:57]} 20. Be3 {[%clk 0:01:39]}  Nxe4 {[%clk 0:00:45]} 21. Bxh6 {[%clk 0:01:28]}  Rxc3 {[%clk 0:00:30]} 22. Bg7 {[%clk 0:01:22]}  Rg8 {[%clk 0:00:20]} 23. Bxe5 {[%clk 0:01:22]}  dxe5 {[%clk 0:00:20]} 24. Rd3 {[%clk 0:00:51]}  Rxd3 {[%clk 0:00:09]} 25. Qxd3 {[%clk 0:00:50]}  Qe1+ {[%clk 0:00:08]} 26. Ka2 {[%clk 0:00:50]}  Rg3 {[%clk 0:00:03]} 27. Qd5 {[%clk 0:00:42]}  e6 {[%clk 0:00:03]} 28. Qc4 {[%clk 0:00:18]}  Qa5+ {[%clk 0:00:03]} 29. Qa4+ {[%clk 0:00:18]}  Qxa4+ {[%clk 0:00:03]} 30. bxa4 {[%clk 0:00:19]}  Nd2 {[%clk 0:00:02]} 31. Bd3 {[%clk 0:00:18]}  Rxg2 {[%clk 0:00:02]} 32. h4 {[%clk 0:00:18]}  e4 {[%clk 0:00:03]} 33. Bf1 {[%clk 0:00:06]}  Rf2 {[%clk 0:00:02]} 34. Bh3 {[%clk 0:00:05]}  Kf8 {[%clk 0:00:01]} 35. h5 {[%clk 0:00:05]}  Kg7 {[%clk 0:00:02]} 36. Bg4 {[%clk 0:00:05]}  Kh8 {[%clk 0:00:03]} 37. b4 {[%clk 0:00:05]}  e3 {[%clk 0:00:03]} 38. Re1 {[%clk 0:00:03]}  Nc4 {[%clk 0:00:03]} 39. Re2 {[%clk 0:00:02]}  Rxe2 {[%clk 0:00:02]} 40. Bxe2 {[%clk 0:00:03]}  Ne5 {[%clk 0:00:02]} 41. Kb3 {[%clk 0:00:03]}  f5 {[%clk 0:00:02]} 42. c4 {[%clk 0:00:04]}  f4 {[%clk 0:00:03]} 43. Kc3 {[%clk 0:00:04]}  f3 {[%clk 0:00:03]} 44. Bxf3 {[%clk 0:00:03]}  Nxf3 {[%clk 0:00:04]} 45. Kd3 {[%clk 0:00:03]}  Ne5+ {[%clk 0:00:04]} 46. Kxe3 {[%clk 0:00:03]}  Nxc4+ {[%clk 0:00:05]} 47. Kd4 {[%clk 0:00:04]}  Nb6 {[%clk 0:00:04]} 48. a5 {[%clk 0:00:04]}  Nd5 {[%clk 0:00:04]} 49. Kc5 {[%clk 0:00:04]}  Kg7 {[%clk 0:00:04]} 50. b5 {[%clk 0:00:04]}  axb5 {[%clk 0:00:04]} 51. Kxb5 {[%clk 0:00:05]}  Kh6 {[%clk 0:00:03]} 52. Kc5 {[%clk 0:00:06]}  Kxh5 {[%clk 0:00:03]} 53. Kd6 {[%clk 0:00:06]}  Nb4 {[%clk 0:00:03]} 54. Kxe6 {[%clk 0:00:06]}  Nc6 {[%clk 0:00:04]} 55. Kd6 {[%clk 0:00:05]}  Nxa5 {[%clk 0:00:05]} 56. Kc7 {[%clk 0:00:06]}  b5 {[%clk 0:00:04]} 57. Kb6 {[%clk 0:00:01]}  b4 {[%clk 0:00:05]} 58. Kc5 {[%clk 0:00:01]}  b3 {[%clk 0:00:06]} 59. Kb6 {[%clk 0:00:01]}  b2 {[%clk 0:00:07]} 60. Ka7 {[%clk 0:00:01]}  b1=Q {[%clk 0:00:08]} 0-1


[Site "https://www.chess.com"]

[Event "Titled Tuesday Blitz April 25 Late 2023"]
[White "Pinto, Daniel"]
[Black "Ezat, Mohamed"]
[WhiteFideId "3303144"]
[BlackFideId "10600906"]
[WhiteElo "2145"]
[BlackElo "2386"]
[Result "0-1"]
[Round "09"]
[TimeControl "180+2"]
[Date "2023.04.25"]
[WhiteClock "0:00:02"]
[BlackClock "0:01:06"]

1. e4 {[%clk 0:03:00]}  Nf6 {[%clk 0:02:56]} 2. Nc3 {[%clk 0:02:56]}  e5 {[%clk 0:02:55]} 3. g3 {[%clk 0:02:55]}  d5 {[%clk 0:02:55]} 4. exd5 {[%clk 0:02:55]}  Nxd5 {[%clk 0:02:56]} 5. Bg2 {[%clk 0:02:54]}  Nxc3 {[%clk 0:02:56]} 6. bxc3 {[%clk 0:02:53]}  Nc6 {[%clk 0:02:56]} 7. Nf3 {[%clk 0:02:49]}  Bc5 {[%clk 0:02:55]} 8. O-O {[%clk 0:02:47]}  O-O {[%clk 0:02:56]} 9. Nxe5 {[%clk 0:02:47]}  Nxe5 {[%clk 0:02:55]} 10. d4 {[%clk 0:02:48]}  Bd6 {[%clk 0:02:55]} 11. dxe5 {[%clk 0:02:47]}  Bxe5 {[%clk 0:02:55]} 12. Qf3 {[%clk 0:02:31]}  Qf6 {[%clk 0:02:51]} 13. Qxf6 {[%clk 0:01:57]}  Bxf6 {[%clk 0:02:50]} 14. Rb1 {[%clk 0:01:58]}  c6 {[%clk 0:02:48]} 15. c4 {[%clk 0:01:54]}  h5 {[%clk 0:02:43]} 16. Re1 {[%clk 0:01:31]}  a5 {[%clk 0:02:42]} 17. Bb2 {[%clk 0:01:02]}  Bxb2 {[%clk 0:02:37]} 18. Rxb2 {[%clk 0:01:03]}  a4 {[%clk 0:02:31]} 19. a3 {[%clk 0:00:56]}  Ra7 {[%clk 0:02:28]} 20. Re7 {[%clk 0:00:55]}  Rd8 {[%clk 0:02:24]} 21. Bxc6 {[%clk 0:00:46]}  Bh3 {[%clk 0:02:22]} 22. Re8+ {[%clk 0:00:45]}  Rxe8 {[%clk 0:02:19]} 23. Bxe8 {[%clk 0:00:46]}  Ra8 {[%clk 0:02:12]} 24. Bb5 {[%clk 0:00:45]}  Rd8 {[%clk 0:02:11]} 25. Rb1 {[%clk 0:00:42]}  Rd2 {[%clk 0:02:11]} 26. Bxa4 {[%clk 0:00:41]}  g5 {[%clk 0:02:04]} 27. c5 {[%clk 0:00:38]}  Kg7 {[%clk 0:02:03]} 28. c6 {[%clk 0:00:20]}  bxc6 {[%clk 0:02:01]} 29. Bxc6 {[%clk 0:00:21]}  Rxc2 {[%clk 0:02:01]} 30. Bg2 {[%clk 0:00:19]}  Bf5 {[%clk 0:02:01]} 31. Ra1 {[%clk 0:00:19]}  Rc5 {[%clk 0:01:57]} 32. a4 {[%clk 0:00:19]}  Ra5 {[%clk 0:01:57]} 33. Bc6 {[%clk 0:00:20]}  Kf6 {[%clk 0:01:54]} 34. Bb5 {[%clk 0:00:20]}  Ke5 {[%clk 0:01:54]} 35. Re1+ {[%clk 0:00:19]}  Kd4 {[%clk 0:01:52]} 36. Re7 {[%clk 0:00:19]}  Be6 {[%clk 0:01:52]} 37. Rc7 {[%clk 0:00:12]}  Ra8 {[%clk 0:01:49]} 38. Kf1 {[%clk 0:00:13]}  Bd5 {[%clk 0:01:42]} 39. Rd7 {[%clk 0:00:12]}  Ke5 {[%clk 0:01:41]} 40. Ke2 {[%clk 0:00:11]}  Rc8 {[%clk 0:01:38]} 41. Re7+ {[%clk 0:00:11]}  Be6 {[%clk 0:01:33]} 42. Kd3 {[%clk 0:00:09]}  Rc1 {[%clk 0:01:29]} 43. Rb7 {[%clk 0:00:05]}  Rh1 {[%clk 0:01:24]} 44. h4 {[%clk 0:00:06]}  gxh4 {[%clk 0:01:24]} 45. gxh4 {[%clk 0:00:07]}  Rxh4 {[%clk 0:01:24]} 46. a5 {[%clk 0:00:07]}  Rb4 {[%clk 0:01:20]} 47. Kc3 {[%clk 0:00:08]}  Rb3+ {[%clk 0:01:19]} 48. Kc2 {[%clk 0:00:07]}  Ra3 {[%clk 0:01:17]} 49. a6 {[%clk 0:00:07]}  h4 {[%clk 0:01:17]} 50. Rb6 {[%clk 0:00:06]}  h3 {[%clk 0:01:15]} 51. Bc6 {[%clk 0:00:07]}  h2 {[%clk 0:01:10]} 52. Rb5+ {[%clk 0:00:05]}  Kd4 {[%clk 0:01:08]} 53. Rh5 {[%clk 0:00:04]}  Rxa6 {[%clk 0:01:06]} 54. Bb5 {[%clk 0:00:03]}  Ra2+ {[%clk 0:01:05]} 55. Kb1 {[%clk 0:00:02]}  Rxf2 {[%clk 0:01:06]} 0-1


[Site "https://www.chess.com"]

[Event "Titled Tuesday Blitz April 25 Late 2023"]
[White "Melikhov, Evgeny V."]
[Black "Remolar Gallen, Jose"]
[WhiteFideId "4122046"]
[BlackFideId "2215187"]
[WhiteElo "2158"]
[BlackElo "2223"]
[Result "0-1"]
[Round "09"]
[TimeControl "180+2"]
[Date "2023.04.25"]
[WhiteClock "0:00:05"]
[BlackClock "0:00:18"]

1. d4 {[%clk 0:03:00]}  Nf6 {[%clk 0:02:58]} 2. c4 {[%clk 0:03:00]}  g6 {[%clk 0:02:57]} 3. Nc3 {[%clk 0:03:00]}  d5 {[%clk 0:02:57]} 4. Nf3 {[%clk 0:02:58]}  Bg7 {[%clk 0:02:56]} 5. e3 {[%clk 0:02:59]}  O-O {[%clk 0:02:55]} 6. Be2 {[%clk 0:02:59]}  c5 {[%clk 0:02:49]} 7. O-O {[%clk 0:02:58]}  cxd4 {[%clk 0:02:45]} 8. exd4 {[%clk 0:02:59]}  Nc6 {[%clk 0:02:43]} 9. Re1 {[%clk 0:02:59]}  h6 {[%clk 0:02:30]} 10. h3 {[%clk 0:02:53]}  Be6 {[%clk 0:02:29]} 11. c5 {[%clk 0:02:46]}  Ne4 {[%clk 0:02:29]} 12. Bf4 {[%clk 0:02:15]}  f5 {[%clk 0:02:20]} 13. Nxe4 {[%clk 0:01:47]}  fxe4 {[%clk 0:02:15]} 14. Be3 {[%clk 0:01:19]}  exf3 {[%clk 0:02:13]} 15. Bxf3 {[%clk 0:01:20]}  Qd7 {[%clk 0:02:05]} 16. Qd2 {[%clk 0:01:10]}  Kh7 {[%clk 0:01:59]} 17. Bd1 {[%clk 0:01:06]}  Qc7 {[%clk 0:01:05]} 18. b4 {[%clk 0:01:03]}  a6 {[%clk 0:01:03]} 19. a4 {[%clk 0:01:02]}  Bf7 {[%clk 0:00:59]} 20. Bc2 {[%clk 0:00:58]}  e5 {[%clk 0:00:58]} 21. dxe5 {[%clk 0:00:48]}  Nxe5 {[%clk 0:00:59]} 22. Bd4 {[%clk 0:00:42]}  Nc4 {[%clk 0:00:56]} 23. Qc3 {[%clk 0:00:42]}  Bxd4 {[%clk 0:00:48]} 24. Qxd4 {[%clk 0:00:42]}  Rae8 {[%clk 0:00:47]} 25. Qf6 {[%clk 0:00:29]}  Rxe1+ {[%clk 0:00:39]} 26. Rxe1 {[%clk 0:00:28]}  Re8 {[%clk 0:00:40]} 27. Rxe8 {[%clk 0:00:19]}  Bxe8 {[%clk 0:00:39]} 28. h4 {[%clk 0:00:19]}  Qf7 {[%clk 0:00:37]} 29. Qd4 {[%clk 0:00:14]}  h5 {[%clk 0:00:35]} 30. g3 {[%clk 0:00:10]}  Bd7 {[%clk 0:00:34]} 31. Qd3 {[%clk 0:00:08]}  Bf5 {[%clk 0:00:33]} 32. Qc3 {[%clk 0:00:08]}  Bxc2 {[%clk 0:00:32]} 33. Qxc2 {[%clk 0:00:08]}  Qf6 {[%clk 0:00:30]} 34. b5 {[%clk 0:00:08]}  axb5 {[%clk 0:00:30]} 35. axb5 {[%clk 0:00:08]}  Qd4 {[%clk 0:00:30]} 36. c6 {[%clk 0:00:08]}  bxc6 {[%clk 0:00:30]} 37. bxc6 {[%clk 0:00:08]}  Qc5 {[%clk 0:00:24]} 38. Qe2 {[%clk 0:00:08]}  Qxc6 {[%clk 0:00:19]} 39. Qe7+ {[%clk 0:00:08]}  Kg8 {[%clk 0:00:19]} 40. g4 {[%clk 0:00:07]}  hxg4 {[%clk 0:00:19]} 41. h5 {[%clk 0:00:08]}  gxh5 {[%clk 0:00:18]} 42. Qg5+ {[%clk 0:00:08]}  Kf7 {[%clk 0:00:18]} 43. Qxh5+ {[%clk 0:00:08]}  Ke7 {[%clk 0:00:18]} 44. Qxg4 {[%clk 0:00:08]}  Ne5 {[%clk 0:00:16]} 45. Qg7+ {[%clk 0:00:07]}  Nf7 {[%clk 0:00:16]} 46. f3 {[%clk 0:00:06]}  Qc1+ {[%clk 0:00:14]} 47. Kf2 {[%clk 0:00:06]}  Qd2+ {[%clk 0:00:13]} 48. Kf1 {[%clk 0:00:05]}  Qd3+ {[%clk 0:00:13]} 49. Kf2 {[%clk 0:00:05]}  d4 {[%clk 0:00:12]} 50. Qg4 {[%clk 0:00:03]}  Qe3+ {[%clk 0:00:11]} 51. Kg2 {[%clk 0:00:03]}  d3 {[%clk 0:00:10]} 52. Qb4+ {[%clk 0:00:03]}  Kf6 {[%clk 0:00:10]} 53. Qc3+ {[%clk 0:00:03]}  Ne5 {[%clk 0:00:10]} 54. Qc8 {[%clk 0:00:03]}  Qxf3+ {[%clk 0:00:10]} 55. Kh2 {[%clk 0:00:02]}  Qh5+ {[%clk 0:00:10]} 56. Kg2 {[%clk 0:00:02]}  Qg4+ {[%clk 0:00:10]} 57. Qxg4 {[%clk 0:00:01]}  Nxg4 {[%clk 0:00:11]} 58. Kf3 {[%clk 0:00:01]}  Ne5+ {[%clk 0:00:12]} 59. Ke4 {[%clk 0:00:01]}  Ke6 {[%clk 0:00:13]} 60. Kd4 {[%clk 0:00:02]}  Kd6 {[%clk 0:00:14]} 61. Ke3 {[%clk 0:00:02]}  Kd5 {[%clk 0:00:15]} 62. Kd2 {[%clk 0:00:02]}  Kd4 {[%clk 0:00:16]} 63. Kd1 {[%clk 0:00:03]}  Nc4 {[%clk 0:00:17]} 64. Kc1 {[%clk 0:00:03]}  Kc3 {[%clk 0:00:17]} 65. Kd1 {[%clk 0:00:04]}  d2 {[%clk 0:00:16]} 66. Ke2 {[%clk 0:00:05]}  Nb2 {[%clk 0:00:17]} 67. Kf2 {[%clk 0:00:05]}  d1=Q {[%clk 0:00:18]} 0-1


[Site "https://www.chess.com"]

[Event "Titled Tuesday Blitz April 25 Late 2023"]
[White "Toniutti, Ezio"]
[Black "Rottenwohrer Suarez, Juan"]
[WhiteFideId "113034"]
[BlackFideId "32068182"]
[WhiteElo "2215"]
[BlackElo "2174"]
[Result "0-1"]
[Round "09"]
[TimeControl "180+2"]
[Date "2023.04.25"]
[WhiteClock "0:00:04"]
[BlackClock "0:00:06"]

1. d4 {[%clk 0:02:52]}  Nf6 {[%clk 0:02:58]} 2. c4 {[%clk 0:02:52]}  c5 {[%clk 0:02:58]} 3. d5 {[%clk 0:02:52]}  b5 {[%clk 0:02:58]} 4. cxb5 {[%clk 0:02:52]}  a6 {[%clk 0:02:58]} 5. e3 {[%clk 0:02:51]}  g6 {[%clk 0:02:53]} 6. Nc3 {[%clk 0:02:50]}  Bg7 {[%clk 0:02:53]} 7. a4 {[%clk 0:02:47]}  O-O {[%clk 0:02:47]} 8. Nf3 {[%clk 0:02:46]}  d6 {[%clk 0:02:37]} 9. Bd2 {[%clk 0:02:44]}  Bb7 {[%clk 0:02:18]} 10. e4 {[%clk 0:02:44]}  Ne8 {[%clk 0:02:08]} 11. Be2 {[%clk 0:02:42]}  axb5 {[%clk 0:02:06]} 12. Bxb5 {[%clk 0:02:40]}  Nc7 {[%clk 0:02:05]} 13. O-O {[%clk 0:02:39]}  Nxb5 {[%clk 0:02:03]} 14. axb5 {[%clk 0:02:40]}  Nd7 {[%clk 0:01:55]} 15. Qe2 {[%clk 0:02:37]}  Qb6 {[%clk 0:01:47]} 16. h3 {[%clk 0:02:31]}  h6 {[%clk 0:01:45]} 17. Bf4 {[%clk 0:02:29]}  Kh7 {[%clk 0:01:42]} 18. Nd2 {[%clk 0:02:29]}  Qc7 {[%clk 0:01:29]} 19. Nc4 {[%clk 0:02:24]}  Rfb8 {[%clk 0:00:59]} 20. Rfe1 {[%clk 0:02:21]}  Bc8 {[%clk 0:00:52]} 21. e5 {[%clk 0:02:16]}  Rxa1 {[%clk 0:00:43]} 22. Rxa1 {[%clk 0:02:15]}  Nxe5 {[%clk 0:00:43]} 23. Nxe5 {[%clk 0:02:11]}  dxe5 {[%clk 0:00:43]} 24. Bg3 {[%clk 0:02:09]}  f5 {[%clk 0:00:38]} 25. f3 {[%clk 0:02:00]}  Bd7 {[%clk 0:00:33]} 26. Bf2 {[%clk 0:01:58]}  c4 {[%clk 0:00:32]} 27. Ra7 {[%clk 0:01:55]}  Qd6 {[%clk 0:00:26]} 28. Qxc4 {[%clk 0:01:49]}  Rc8 {[%clk 0:00:16]} 29. Qd3 {[%clk 0:01:49]}  h5 {[%clk 0:00:13]} 30. Kh1 {[%clk 0:01:34]}  Rb8 {[%clk 0:00:13]} 31. Ra6 {[%clk 0:01:28]}  Qb4 {[%clk 0:00:12]} 32. d6 {[%clk 0:01:10]}  exd6 {[%clk 0:00:09]} 33. Rxd6 {[%clk 0:00:47]}  Bxb5 {[%clk 0:00:10]} 34. Nxb5 {[%clk 0:00:38]}  Qxb5 {[%clk 0:00:10]} 35. Qd2 {[%clk 0:00:26]}  Qxb2 {[%clk 0:00:04]} 36. Qg5 {[%clk 0:00:23]}  Qxf2 {[%clk 0:00:02]} 37. Qxg6+ {[%clk 0:00:20]}  Kg8 {[%clk 0:00:03]} 38. Qe6+ {[%clk 0:00:17]}  Kh8 {[%clk 0:00:03]} 39. Kh2 {[%clk 0:00:15]}  Qe3 {[%clk 0:00:02]} 40. Qxf5 {[%clk 0:00:14]}  Qf4+ {[%clk 0:00:02]} 41. Qxf4 {[%clk 0:00:14]}  exf4 {[%clk 0:00:03]} 42. Rg6 {[%clk 0:00:13]}  Rf8 {[%clk 0:00:03]} 43. Rg5 {[%clk 0:00:13]}  Bh6 {[%clk 0:00:02]} 44. Rxh5 {[%clk 0:00:13]}  Kg7 {[%clk 0:00:02]} 45. Rb5 {[%clk 0:00:13]}  Kg6 {[%clk 0:00:03]} 46. h4 {[%clk 0:00:12]}  Rf5 {[%clk 0:00:02]} 47. Rb6+ {[%clk 0:00:11]}  Kh5 {[%clk 0:00:02]} 48. Kh3 {[%clk 0:00:12]}  Bg7 {[%clk 0:00:02]} 49. Rb7 {[%clk 0:00:09]}  Bf6 {[%clk 0:00:03]} 50. Rh7+ {[%clk 0:00:08]}  Kg6 {[%clk 0:00:03]} 51. Rb7 {[%clk 0:00:07]}  Rh5 {[%clk 0:00:03]} 52. Kh2 {[%clk 0:00:02]}  Bxh4 {[%clk 0:00:01]} 53. Kg1 {[%clk 0:00:01]}  Bg3 {[%clk 0:00:02]} 54. Kf1 {[%clk 0:00:02]}  Rd5 {[%clk 0:00:02]} 55. Ke2 {[%clk 0:00:01]}  Re5+ {[%clk 0:00:02]} 56. Kd3 {[%clk 0:00:01]}  Re1 {[%clk 0:00:02]} 57. Rb6+ {[%clk 0:00:01]}  Kf5 {[%clk 0:00:02]} 58. Rb5+ {[%clk 0:00:02]}  Ke6 {[%clk 0:00:03]} 59. Rb6+ {[%clk 0:00:03]}  Ke5 {[%clk 0:00:03]} 60. Rb5+ {[%clk 0:00:03]}  Kd6 {[%clk 0:00:04]} 61. Rb6+ {[%clk 0:00:04]}  Kc5 {[%clk 0:00:05]} 62. Rb2 {[%clk 0:00:04]}  Re3+ {[%clk 0:00:05]} 63. Kd2 {[%clk 0:00:05]}  Ra3 {[%clk 0:00:04]} 64. Rc2+ {[%clk 0:00:05]}  Kd4 {[%clk 0:00:04]} 65. Ke2 {[%clk 0:00:05]}  Ra1 {[%clk 0:00:04]} 66. Rd2+ {[%clk 0:00:05]}  Kc3 {[%clk 0:00:03]} 67. Rd3+ {[%clk 0:00:05]}  Kc4 {[%clk 0:00:04]} 68. Rd2 {[%clk 0:00:05]}  Rg1 {[%clk 0:00:04]} 69. Rc2+ {[%clk 0:00:05]}  Kd4 {[%clk 0:00:04]} 70. Rd2+ {[%clk 0:00:05]}  Kc3 {[%clk 0:00:05]} 71. Rd3+ {[%clk 0:00:05]}  Kc4 {[%clk 0:00:05]} 72. Rd8 {[%clk 0:00:04]}  Rxg2+ {[%clk 0:00:06]} 73. Kd1 {[%clk 0:00:04]}  Rf2 {[%clk 0:00:06]} 74. Rc8+ {[%clk 0:00:04]}  Kd4 {[%clk 0:00:05]} 75. Rd8+ {[%clk 0:00:05]}  Ke3 {[%clk 0:00:06]} 76. Re8+ {[%clk 0:00:04]}  Kxf3 {[%clk 0:00:06]} 0-1


[Site "https://www.chess.com"]